[Event "XXII Rochefort Chess Masters"]
[Site "ROCHEFORT, France"]
[Date "2024.02.20"]
[Round "6.3"]
[White "Boyer, Mahel"]
[Black "Laurent-Paoli, Pierre"]
[Result "1/2-1/2"]
[TimeControl "1h30/40 - 30' + [30'']"]
[WhiteElo "2418"]
[BlackElo "2537"]

1. e4 {[%clk 01:22:35]} {[%emt 00:06:01]} c6 2. Nf3 {[%emt 00:01:55]} d5 {[%emt
00:00:37]} 3. e5 {[%clk 01:22:41]} {[%emt 00:00:05]} Bf5 {[%emt 00:07:30]} 4.
Be2 {[%clk 01:14:56]} {[%emt 00:01:09]} e6 {[%clk 01:26:55]} {[%emt 00:00:25]}
5. d4 {[%clk 01:14:57]} {[%emt 00:00:29]} c5 {[%emt 00:16:48]} 6. c3 {[%clk
00:59:09]} {[%emt 00:00:49]} Nc6 {[%clk 01:25:59]} {[%emt 00:00:35]} 7. O-O
{[%clk 00:59:29]} {[%emt 00:00:12]} Bg4 {[%emt 00:05:57]} 8. Be3 {[%emt
00:09:06]} cxd4 {[%clk 01:16:56]} {[%emt 00:00:07]} 9. cxd4 {[%clk 00:54:43]}
{[%emt 00:00:39]} Nge7 {[%emt 00:14:55]} 10. Nbd2 {[%emt 00:03:32]} Nf5 {[%emt
00:01:40]} 11. Bb5 {[%emt 00:01:56]} Be7 {[%clk 01:11:32]} {[%emt 00:00:44]} 12.
Rc1 {[%emt 00:09:26]} O-O {[%clk 01:02:49]} {[%emt 00:00:06]} 13. Bxc6 {[%clk
00:40:01]} {[%emt 00:00:29]} bxc6 {[%clk 01:03:12]} {[%emt 00:00:07]} 14. Rxc6
{[%emt 00:00:31]} Qa5 {[%emt 00:09:45]} 15. a4 {[%emt 00:15:38]} Nxe3 {[%clk
00:47:29]} {[%emt 00:00:49]} 16. fxe3 {[%clk 00:31:25]} {[%emt 00:00:05]} Bf5
{[%emt 00:01:48]} 17. b3 {[%emt 00:00:34]} Rac8 {[%emt 00:01:34]} 18. Qc1
{[%emt 00:01:58]} Ba3 {[%clk 00:46:06]} {[%emt 00:00:22]} 19. Rxc8 {[%clk
00:29:20]} {[%emt 00:00:11]} Bxc1 {[%clk 00:46:32]} {[%emt 00:00:05]} 20. Rfxc1
{[%clk 00:29:38]} {[%emt 00:00:12]} g5 {[%emt 00:19:51]} 21. R1c5 {[%emt
00:07:15]} Qa6 {[%emt 00:00:32]} 22. Rxf8+ {[%clk 00:11:18]} {[%emt 00:00:29]}
Kxf8 {[%emt 00:01:18]} 23. Nxg5 {[%emt 00:02:48]} Qd3 {[%emt 00:02:32]} 24.
Ngf3 {[%emt 00:00:07]} Qxe3+ {[%clk 00:36:20]} {[%emt 00:00:02]} 25. Kh1 {[%emt
00:03:14]} Kg7 {[%emt 00:01:31]} 26. h3 {[%emt 00:02:04]} a6 {[%emt 00:02:09]}
27. Rc6 {[%emt 00:01:28]} Qe2 {[%emt 00:02:14]} 28. Kh2 {[%emt 00:00:58]} Be4
{[%emt 00:03:21]} 29. Kg3 {[%emt 00:01:33]} h6 {[%emt 00:02:23]} 30. Rc7 {[%emt
00:00:53]} Qd3 {[%emt 00:00:14]} 31. Rc6 {[%emt 00:02:12]} Qe2 {[%emt
00:01:54]} 32. Rc3 {[%emt 00:01:09]} Kf8 {[%clk 00:24:52]} {[%emt 00:00:14]} 33.
Rc7 {[%emt 00:00:53]} Ke8 {[%emt 00:00:26]} 34. Rb7 {[%emt 00:00:51]} Bg6
{[%emt 00:00:58]} 35. Ra7 {[%emt 00:00:27]} Kd8 {[%clk 00:24:54]} {[%emt
00:00:17]} 36. Rb7 {[%clk 00:00:31]} {[%emt 00:00:29]} Kc8 {[%clk 00:25:13]}
{[%emt 00:00:11]} 37. Re7 {[%emt 00:01:39]} Kb8 {[%clk 00:24:28]} {[%emt
00:00:05]} 38. h4 {[%emt 00:01:29]} Qe3 {[%emt 00:00:21]} 39. Rd7 {[%emt
00:03:15]} a5 {[%clk 00:20:30]} {[%emt 00:00:40]} 40. Rd8+ {[%emt 00:03:40]}
Kc7 {[%emt 00:04:12]} 41. Ra8 {[%clk 00:27:12]} {[%emt 00:00:07]} Qc3 {[%emt
00:01:58]} 42. Rh8 {[%emt 00:01:11]} h5 {[%emt 00:06:47]} 43. Kf4 {[%clk
00:19:52]} {[%emt 00:00:17]} Qb4 {[%emt 00:03:23]} 44. g4 {[%clk 00:17:22]}
{[%emt 00:00:15]} hxg4 {[%clk 00:46:52]} {[%emt 00:00:11]} 45. Kxg4 {[%emt
00:03:17]} Qe7 {[%emt 00:02:58]} 46. h5 {[%emt 00:03:46]} Bf5+ {[%emt
00:06:17]} 47. Kg3 {[%emt 00:02:30]} f6 {[%clk 00:40:02]} {[%emt 00:00:19]} 48.
exf6 {[%clk 00:07:27]} {[%emt 00:01:07]} Qxf6 {[%clk 00:40:20]} {[%emt
00:00:13]} 49. Rg8 {[%emt 00:03:30]} Bh7 {[%emt 00:00:45]} 50. Rg4 {[%emt
00:02:51]} Bc2 {[%emt 00:02:12]} 51. Ne5 {[%emt 00:05:42]} Qh6 {[%emt
00:00:24]} 52. Ndf3 {[%emt 00:11:58]} Bd1 {[%emt 00:01:34]} 53. Rg5 {[%emt
00:04:59]} Kb7 {[%emt 00:01:40]} 54. Ng4 {[%emt 00:00:54]} Qf8 {[%clk
00:13:31]} {[%emt 00:00:04]} 55. Nfe5 {[%emt 00:01:51]} Qf1 {[%clk 00:12:10]}
{[%emt 00:00:05]} 56. Rg7+ {[%clk 00:04:31]} {[%emt 00:00:07]} Ka6 {[%emt
00:00:50]} 57. h6 {[%emt 00:02:31]} Qe1+ {[%emt 00:01:44]} 58. Kg2 {[%emt
00:01:52]} Bc2 {[%emt 00:02:26]} 59. Nf2 {[%emt 00:01:05]} Be4+ {[%clk
00:08:09]} {[%emt 00:00:39]} 60. Nxe4 {[%clk 00:00:50]} {[%emt 00:01:35]} dxe4
61. h7 {[%emt 00:01:58]} Qd2+ {[%emt 00:00:28]} 62. Kg3 {[%emt 00:00:55]} Qe3+
{[%emt 00:00:14]} 63. Kg2 {[%emt 00:01:01]} Qd2+ {[%emt 00:00:49]} 64. Kg3
{[%emt 00:01:42]} Qe3+ {[%emt 00:00:23]} 65. Kg2 {[%emt 00:01:30]} Qd2+ {[%emt
00:00:59]} 1/2-1/2

[Event "XXII Rochefort Chess Masters"]
[Site "ROCHEFORT, France"]
[Date "2024.02.20"]
[Round "6.2"]
[White "Sivuk, Vitaly"]
[Black "Larkin, Vladyslav"]
[Result "1-0"]
[TimeControl "1h30/40 - 30' + [30'']"]
[WhiteElo "2520"]
[BlackElo "2460"]

1. d4 {[%clk 01:18:23]} {[%emt 00:00:41]} Nf6 {[%emt 00:00:31]} 2. c4 {[%emt
00:00:06]} e6 {[%clk 01:31:04]} {[%emt 00:00:04]} 3. Bg5 {[%emt 00:04:26]} c5
{[%clk 01:25:59]} {[%emt 00:02:34]} 4. d5 {[%emt 00:00:34]} exd5 {[%clk
01:25:52]} {[%emt 00:00:17]} 5. cxd5 {[%clk 01:18:25]} {[%emt 00:00:05]} d6
{[%emt 00:00:49]} 6. Nc3 {[%clk 01:18:03]} {[%emt 00:00:05]} Be7 {[%clk
01:26:45]} {[%emt 00:00:05]} 7. Nf3 {[%emt 00:00:39]} O-O {[%emt 00:01:06]} 8.
e3 {[%emt 00:05:05]} Bg4 {[%emt 00:08:49]} 9. Be2 {[%emt 00:07:31]} Bxf3 {[%clk
01:07:44]} {[%emt 00:00:09]} 10. Bxf3 {[%clk 01:17:04]} {[%emt 00:00:10]} Nbd7
{[%clk 01:07:35]} {[%emt 00:00:40]} 11. O-O {[%clk 01:16:24]} {[%emt 00:01:09]}
Rb8 {[%emt 00:07:38]} 12. a4 {[%clk 01:11:37]} {[%emt 00:00:16]} a6 {[%clk
01:03:12]} {[%emt 00:02:47]} 13. a5 {[%clk 01:09:40]} {[%emt 00:02:26]} Re8
{[%emt 00:02:39]} 14. Bf4 {[%clk 01:08:12]} {[%emt 00:00:22]} Bf8 {[%emt
00:01:44]} 15. Qc2 {[%emt 00:17:02]} Qc7 {[%clk 00:45:52]} {[%emt 00:00:14]} 16.
h3 {[%emt 00:15:54]} g6 {[%emt 00:07:17]} 17. Ra4 {[%clk 01:03:29]} {[%emt
00:01:09]} Ne5 {[%clk 00:27:09]} {[%emt 00:00:23]} 18. Be2 {[%clk 01:03:44]}
{[%emt 00:00:15]} Bg7 {[%clk 00:27:06]} {[%emt 00:00:34]} 19. Bh2 {[%emt
00:08:33]} Qe7 {[%emt 00:01:40]} 20. Rb1 {[%clk 00:57:42]} {[%emt 00:04:18]}
Rbc8 {[%clk 00:19:26]} {[%emt 00:01:10]} 21. Qd2 {[%emt 00:04:27]} c4 {[%emt
00:09:32]} 22. Rb4 {[%clk 00:42:57]} {[%emt 00:04:30]} Qc7 {[%clk 00:16:17]}
{[%emt 00:01:24]} 23. Ra1 {[%clk 00:41:41]} {[%emt 00:01:46]} Nfd7 {[%emt
00:05:14]} 24. Ne4 {[%emt 00:05:18]} h6 {[%emt 00:06:11]} 25. Raa4 {[%emt
00:07:19]} f5 {[%emt 00:01:30]} 26. Bxe5 {[%emt 00:00:56]} Nxe5 {[%clk
00:08:15]} {[%emt 00:00:30]} 27. Nc3 {[%emt 00:04:18]} Nd7 {[%emt 00:00:36]} 28.
Rxc4 {[%clk 00:26:22]} {[%emt 00:00:16]} Nc5 {[%emt 00:03:06]} 29. Ra3 {[%emt
00:00:29]} Qe7 {[%emt 00:01:57]} 30. g3 {[%emt 00:01:29]} Nd7 {[%emt 00:02:51]}
31. Raa4 {[%clk 00:20:52]} {[%emt 00:00:24]} Nc5 {[%emt 00:00:20]} 32. Rab4
{[%emt 00:00:54]} Rc7 {[%emt 00:01:00]} 33. Qc2 {[%emt 00:02:15]} Rec8 {[%emt
00:02:00]} 34. Kg2 {[%emt 00:00:37]} Qf7 {[%emt 00:07:30]} 35. h4 {[%clk
00:11:52]} {[%emt 00:00:02]} h5 {[%emt 00:02:03]} 36. Bf3 {[%clk 00:10:02]}
{[%emt 00:00:20]} Nd7 {[%emt 00:01:24]} 37. Ne2 {[%emt 00:00:48]} Ne5 {[%clk
00:00:54]} {[%emt 00:00:18]} 38. Rxc7 {[%clk 00:09:57]} {[%emt 00:00:15]} Rxc7
{[%clk 00:01:21]} {[%emt 00:00:03]} 39. Qb3 {[%emt 00:00:52]} Kh7 {[%emt
00:00:39]} 40. Nf4 {[%clk 00:10:16]} {[%emt 00:00:23]} Nd7 {[%emt 00:03:30]} 41.
Rxb7 {[%emt 00:02:16]} Nc5 {[%clk 00:00:58]} {[%emt 00:00:02]} 42. Rxc7 {[%clk
00:06:01]} {[%emt 00:00:07]} Qxc7 {[%clk 00:01:25]} {[%emt 00:00:03]} 43. Qa3
{[%clk 00:05:53]} {[%emt 00:00:37]} Nb7 {[%clk 00:00:47]} {[%emt 00:01:09]} 44.
b4 {[%clk 00:05:44]} {[%emt 00:00:38]} Qc4 {[%clk 00:29:08]} {[%emt 00:02:09]}
45. Qa4 {[%emt 00:01:40]} Nc5 {[%clk 00:28:39]} {[%emt 00:00:08]} 46. Qe8
{[%clk 00:35:42]} {[%emt 00:00:12]} 1-0



[ePGN "0.1;DGT LiveChess/2.2.6"]

[Event "XXII Rochefort Chess Masters"]
[Site "ROCHEFORT, France"]
[Date "2024.02.21"]
[Round "7.4"]
[White "Roshka, Yevgeniy"]
[Black "Boyer, Mahel"]
[Result "1/2-1/2"]
[TimeControl "1h30/40 - 30' + [30'']"]
[WhiteElo "2474"]
[BlackElo "2418"]

1. Nf3 {[%clk 01:20:03]} {[%emt 00:10:48]} d5 {[%clk 01:30:13]} {[%emt
00:00:54]} 2. d4 {[%emt 00:00:58]} e6 {[%emt 00:00:37]} 3. c4 {[%clk 01:20:26]}
{[%emt 00:00:01]} a6 {[%clk 01:30:05]} {[%emt 00:00:09]} 4. Nbd2 {[%emt
00:05:51]} Nf6 {[%clk 01:23:26]} {[%emt 00:01:22]} 5. g3 {[%emt 00:00:36]} c5
{[%emt 00:03:13]} 6. Bg2 {[%clk 01:17:29]} {[%emt 00:01:26]} Nc6 {[%emt
00:01:09]} 7. O-O {[%clk 01:17:08]} {[%emt 00:00:20]} h6 {[%emt 00:01:01]} 8.
a3 {[%emt 00:34:39]} a5 {[%emt 00:03:25]} 9. h3 {[%emt 00:06:39]} a4 {[%emt
00:03:21]} 10. cxd5 {[%emt 00:05:16]} exd5 {[%clk 00:40:55]} {[%emt 00:00:26]}
11. dxc5 {[%clk 01:08:17]} {[%emt 00:00:05]} Bxc5 {[%emt 00:00:15]} 12. b4
{[%emt 00:02:24]} axb3 {[%clk 00:39:21]} {[%emt 00:00:01]} 13. Nxb3 {[%clk
01:09:06]} {[%emt 00:00:05]} Bb6 {[%emt 00:03:07]} 14. Qd3 {[%emt 00:00:25]}
O-O {[%emt 00:01:57]} 15. Be3 {[%emt 00:02:06]} Bxe3 {[%clk 00:36:34]} {[%emt
00:00:21]} 16. Qxe3 {[%clk 01:06:51]} {[%emt 00:00:06]} Re8 {[%emt 00:00:59]}
17. Qd3 {[%emt 00:00:26]} Ne4 {[%emt 00:02:13]} 18. Nbd4 {[%emt 00:05:21]} Na5
{[%emt 00:05:02]} 19. Nd2 {[%clk 00:59:52]} {[%emt 00:00:47]} Qf6 {[%emt
00:13:10]} 20. Qb5 {[%emt 00:02:42]} Bxh3 {[%emt 00:01:17]} 21. Nxe4 {[%emt
00:00:35]} dxe4 {[%emt 00:01:30]} 22. Bxh3 {[%clk 00:46:07]} {[%emt 00:00:05]}
Qxd4 {[%emt 00:00:15]} 23. Rfd1 {[%emt 00:03:15]} Qf6 {[%emt 00:02:17]} 24.
Rac1 {[%emt 00:02:12]} e3 {[%clk 00:24:25]} {[%emt 00:01:13]} 25. f4 {[%clk
00:38:23]} {[%emt 00:05:54]} Nc6 26. Bd7 {[%emt 00:07:39]} Qg6 {[%emt
00:01:18]} 27. Kg2 {[%emt 00:03:16]} Qe4+ {[%clk 00:17:12]} {[%emt 00:00:14]}
28. Kg1 {[%emt 00:03:28]} Qg6 {[%clk 00:13:26]} {[%emt 00:00:53]} 29. Kg2
{[%emt 00:02:52]} Qe4+ {[%clk 00:11:05]} {[%emt 00:00:01]} 30. Kg1 {[%emt
00:02:03]} Re7 {[%emt 00:08:49]} 31. Qxb7 {[%clk 00:31:07]} {[%emt 00:01:43]}
Nd4 {[%clk 00:06:08]} {[%emt 00:00:10]} 32. Qxe4 {[%emt 00:03:32]} Nxe2+ {[%clk
00:02:23]} {[%emt 00:01:00]} 33. Kg2 {[%clk 00:31:32]} {[%emt 00:00:19]} Rxe4
{[%clk 00:02:52]} {[%emt 00:00:02]} 34. Bc6 {[%emt 00:00:35]} Rc8 {[%emt
00:02:55]} 35. Bxe4 {[%clk 00:31:00]} {[%emt 00:00:13]} Nxc1 {[%clk 00:01:37]}
{[%emt 00:00:03]} 36. a4 {[%clk 00:30:59]} {[%emt 00:00:31]} e2 {[%clk
00:00:35]} {[%emt 00:01:32]} 37. Re1 {[%clk 00:31:28]} Rc4 {[%emt 00:00:52]} 38.
Bf3 {[%clk 00:30:52]} {[%emt 00:00:48]} g6 {[%clk 00:00:32]} {[%emt 00:00:29]}
39. a5 {[%clk 00:31:13]} {[%emt 00:00:09]} Nb3 {[%emt 00:00:53]} 40. Bd5 {[%clk
00:31:08]} {[%emt 00:00:13]} Nxa5 {[%clk 00:00:32]} {[%emt 00:00:29]} 41. Bxc4
{[%clk 00:31:33]} {[%emt 00:00:06]} Nxc4 {[%clk 00:00:59]} {[%emt 00:00:03]} 42.
Rxe2 {[%clk 00:31:58]} {[%emt 00:00:05]} h5 {[%clk 00:01:18]} {[%emt 00:00:10]}
43. f5 {[%emt 00:12:47]} Kg7 {[%clk 00:22:00]} {[%emt 00:02:32]} 44. Kf3 {[%emt
00:07:33]} Nd6 {[%clk 00:16:28]} {[%emt 00:00:10]} 45. fxg6 {[%clk 00:56:06]}
{[%emt 00:00:12]} Kxg6 {[%emt 00:00:51]} 46. Rd2 {[%clk 00:54:45]} {[%emt
00:01:04]} Nf5 {[%clk 00:17:09]} {[%emt 00:00:14]} 47. Rd8 {[%emt 00:04:32]} f6
{[%emt 00:00:56]} 48. Kf4 {[%clk 00:53:39]} {[%emt 00:00:12]} Ng7 {[%emt
00:00:48]} 49. Ke4 {[%emt 00:00:10]} Nf5 {[%emt 00:01:34]} 50. Rd3 {[%clk
00:52:52]} {[%emt 00:00:01]} Ne7 {[%clk 00:14:15]} {[%emt 00:00:32]} 51. Ra3
{[%clk 00:53:05]} {[%emt 00:00:18]} Nf5 {[%clk 00:14:07]} {[%emt 00:00:37]} 52.
Rc3 {[%emt 00:01:15]} Ne7 {[%clk 00:13:28]} {[%emt 00:00:22]} 53. Rc5 {[%clk
00:53:33]} {[%emt 00:00:05]} Ng8 {[%emt 00:02:46]} 54. Kd5 {[%emt 00:02:00]}
Kf5 {[%clk 00:11:37]} {[%emt 00:00:23]} 55. Kd6+ {[%clk 00:51:58]} {[%emt
00:00:16]} Kg4 {[%clk 00:11:58]} {[%emt 00:00:09]} 56. Ke6 {[%clk 00:52:06]}
{[%emt 00:00:23]} Nh6 {[%emt 00:03:46]} 57. Rc3 {[%emt 00:01:11]} f5 {[%emt
00:00:53]} 58. Kf6 {[%clk 00:48:10]} {[%emt 00:00:45]} f4 {[%clk 00:11:33]}
{[%emt 00:00:16]} 59. gxf4 {[%clk 00:48:35]} {[%emt 00:00:05]} Kxf4 {[%clk
00:11:59]} {[%emt 00:00:04]} 60. Kg6 {[%clk 00:49:00]} {[%emt 00:00:05]} Ng4
{[%clk 00:12:24]} {[%emt 00:00:05]} 61. Rc4+ {[%emt 00:00:23]} Ke5 {[%clk
00:12:38]} {[%emt 00:00:12]} 62. Kxh5 {[%clk 00:49:22]} {[%emt 00:00:18]} Ne3
{[%emt 00:00:14]} 63. Rc8 {[%clk 00:49:31]} {[%emt 00:00:16]} Nf5 {[%clk
00:13:10]} {[%emt 00:00:19]} 64. Re8+ {[%clk 00:49:53]} {[%emt 00:00:09]} Kd5
{[%emt 00:00:10]} 65. Kg5 {[%clk 00:50:17]} {[%emt 00:00:02]} Nd6 {[%clk
00:13:58]} {[%emt 00:00:06]} 66. Re1 {[%clk 00:50:40]} {[%emt 00:00:07]} Nb5
{[%clk 00:14:02]} {[%emt 00:00:26]} 67. Kf4 {[%emt 00:00:24]} Nd6 {[%clk
00:14:11]} {[%emt 00:00:03]} 68. Re5+ {[%clk 00:51:25]} {[%emt 00:00:09]} Kd4
{[%clk 00:14:37]} {[%emt 00:00:04]} 69. Ra5 {[%clk 00:51:43]} {[%emt 00:00:12]}
Nc4 {[%clk 00:14:33]} {[%emt 00:00:34]} 70. Ra1 {[%clk 00:52:07]} {[%emt
00:00:06]} Kd5 {[%clk 00:14:59]} {[%emt 00:00:04]} 71. Rd1+ {[%clk 00:52:33]}
{[%emt 00:00:04]} Ke6 {[%clk 00:15:25]} {[%emt 00:00:04]} 72. Ke4 {[%clk
00:52:56]} {[%emt 00:00:07]} Nd6+ {[%clk 00:15:52]} {[%emt 00:00:04]} 73. Rxd6+
{[%clk 00:53:22]} {[%emt 00:00:04]} Kxd6 {[%clk 00:16:19]} {[%emt 00:00:03]}
1/2-1/2

[Event "XXII Rochefort Chess Masters"]
[Site "ROCHEFORT, France"]
[Date "2024.02.21"]
[Round "7.2"]
[White "Eugene, Floryan"]
[Black "Romanov, Evgeny"]
[Result "1/2-1/2"]
[TimeControl "1h30/40 - 30' + [30'']"]
[WhiteElo "2404"]
[BlackElo "2593"]

1. e4 {[%emt 00:15:52]} e6 {[%emt 00:01:55]} 2. d4 {[%clk 01:29:42]} {[%emt
00:00:20]} d5 {[%emt 00:01:29]} 3. Nc3 {[%emt 00:00:43]} Bb4 {[%emt 00:00:58]}
4. e5 {[%emt 00:00:43]} b6 {[%emt 00:05:28]} 5. h4 {[%emt 00:07:06]} Qd7 {[%emt
00:02:01]} 6. h5 {[%clk 01:17:05]} {[%emt 00:01:49]} h6 {[%clk 01:11:23]}
{[%emt 00:00:07]} 7. Qg4 {[%clk 01:16:57]} {[%emt 00:00:38]} Bf8 {[%emt
00:04:08]} 8. Be3 {[%clk 01:09:51]} {[%emt 00:03:40]} Ne7 {[%emt 00:02:32]} 9.
O-O-O {[%emt 00:02:55]} a5 {[%clk 01:08:59]} {[%emt 00:01:53]} 10. f4 {[%clk
01:05:59]} {[%emt 00:01:14]} Ba6 {[%emt 00:02:00]} 11. Qf3 {[%emt 00:04:53]} b5
{[%emt 00:03:11]} 12. g4 {[%clk 00:59:20]} {[%emt 00:00:17]} b4 {[%emt
00:00:27]} 13. Nce2 {[%emt 00:00:54]} a4 {[%emt 00:04:59]} 14. b3 {[%emt
00:03:56]} c5 {[%emt 00:08:55]} 15. Kd2 {[%emt 00:01:24]} Nec6 {[%emt
00:04:51]} 16. Ke1 {[%emt 00:11:52]} cxd4 {[%emt 00:01:55]} 17. Nxd4 {[%clk
00:38:33]} {[%emt 00:00:10]} Nxd4 {[%clk 00:53:37]} {[%emt 00:00:32]} 18. Bxd4
{[%clk 00:38:48]} {[%emt 00:00:15]} Nc6 {[%emt 00:03:11]} 19. Be3 {[%emt
00:04:05]} Be7 {[%emt 00:02:39]} 20. Bxa6 {[%clk 00:33:31]} {[%emt 00:00:59]}
Rxa6 {[%clk 00:50:25]} {[%emt 00:00:04]} 21. Qe2 {[%emt 00:06:14]} Ra5 {[%clk
00:44:29]} {[%emt 00:01:31]} 22. Nf3 {[%emt 00:04:16]} f6 {[%emt 00:08:32]} 23.
Bb6 {[%clk 00:25:52]} {[%emt 00:00:31]} Ra8 {[%emt 00:03:31]} 24. g5 {[%emt
00:11:19]} hxg5 {[%emt 00:09:12]} 25. h6 {[%emt 00:15:11]} g4 {[%emt 00:10:13]}
26. Ng1 {[%clk 00:04:32]} {[%emt 00:00:15]} Bf8 {[%clk 00:08:24]} {[%emt
00:06:16]} 27. exf6 {[%emt 00:02:44]} gxf6 {[%clk 00:08:07]} {[%emt 00:00:20]}
28. Qxg4 {[%clk 00:02:57]} {[%emt 00:00:18]} axb3 {[%clk 00:08:02]} {[%emt
00:00:36]} 29. axb3 {[%emt 00:03:23]} e5 {[%clk 00:04:51]} {[%emt 00:00:30]} 30.
Qf3 {[%emt 00:04:22]} e4 {[%clk 00:01:17]} {[%emt 00:01:39]} 31. Qh5+ {[%clk
00:01:27]} {[%emt 00:00:50]} Qf7 {[%clk 00:01:45]} {[%emt 00:00:01]} 32. Qxd5
{[%clk 00:01:21]} {[%emt 00:00:36]} Qxd5 {[%clk 00:01:55]} {[%emt 00:00:20]} 33.
Rxd5 {[%emt 00:00:21]} Ra1+ {[%clk 00:01:05]} {[%emt 00:01:02]} 34. Ke2 {[%clk
00:01:23]} {[%emt 00:00:55]} Rxh6 {[%clk 00:01:11]} {[%emt 00:00:24]} 35. Rxh6
{[%clk 00:01:50]} {[%emt 00:00:03]} Bxh6 {[%clk 00:01:40]} {[%emt 00:00:01]} 36.
Rd6 {[%clk 00:02:10]} {[%emt 00:00:11]} Ne7 {[%emt 00:00:36]} 37. Rxf6 {[%clk
00:01:18]} {[%emt 00:00:53]} Bg7 {[%emt 00:00:14]} 38. Re6 {[%emt 00:01:49]}
Kf7 {[%emt 00:01:00]} 39. Rxe4 {[%clk 00:00:49]} {[%emt 00:00:42]} Nd5 {[%clk
00:01:15]} {[%emt 00:00:01]} 40. Bd4 {[%emt 00:00:50]} Bxd4 {[%clk 00:01:19]}
{[%emt 00:00:11]} 41. Rxd4 {[%clk 00:01:07]} {[%emt 00:00:08]} Nc3+ {[%clk
00:01:45]} {[%emt 00:00:03]} 42. Kd3 {[%emt 00:06:59]} Rxg1 {[%clk 00:29:45]}
{[%emt 00:01:04]} 43. Rxb4 {[%emt 00:01:55]} Rg3+ {[%clk 00:29:12]} {[%emt
00:00:25]} 44. Kd4 {[%clk 00:23:52]} {[%emt 00:01:54]} Ne2+ {[%clk 00:28:56]}
{[%emt 00:00:46]} 45. Ke5 {[%emt 00:12:03]} Rc3 {[%clk 00:17:17]} {[%emt
00:00:39]} 46. Rc4 {[%emt 00:02:35]} Rxc4 {[%clk 00:17:07]} {[%emt 00:00:21]}
47. bxc4 {[%emt 00:00:13]} Ke7 {[%emt 00:03:59]} 48. c5 {[%clk 00:16:54]}
{[%emt 00:02:42]} Ng1 {[%clk 00:14:43]} {[%emt 00:02:39]} 49. c6 {[%emt
00:02:27]} Nf3+ {[%clk 00:13:58]} {[%emt 00:00:57]} 50. Kd5 {[%clk 00:14:57]}
{[%emt 00:00:49]} Nh4 {[%emt 00:04:18]} 51. c3 {[%emt 00:00:51]} Kd8 {[%emt
00:03:14]} 52. Kd6 {[%clk 00:09:56]} {[%emt 00:00:39]} Kc8 {[%clk 00:12:14]}
{[%emt 00:00:12]} 53. c7 {[%clk 00:07:51]} {[%emt 00:02:36]} 1/2-1/2